fUSD/lending_fUSD_20260406
["ID","MTS","AMOUNT","RATE_DAILY","PERIOD"]
[419925436,1775511052216,-151.0,0.00015999,2]
[419925437,1775511052225,-151.0,0.00015999,2]
[419925438,1775511052234,-151.0,0.00015999,2]
[419925439,1775511052243,-155.746075,0.00015999,2]
[419925440,1775511052252,-151.0,0.00015999,2]
[419925441,1775511052261,-151.0,0.00015999,2]
[419925442,1775511052271,-151.0,0.00015999,2]
[419925443,1775511052281,-151.0,0.00015999,2]
[419925444,1775511052290,-150.0,0.00015999,2]
[419925445,1775511052299,-150.0,0.00015999,2]
[419925446,1775511052308,-150.0,0.00015999,2]
[419925447,1775511052317,-150.0,0.00015999,2]
[419925448,1775511052326,-150.0,0.00015999,2]
[419925449,1775511052335,-150.0,0.00015999,2]
[419925450,1775511052344,-150.0,0.00015999,2]
[419925451,1775511052353,-150.0,0.00015999,2]
[419925452,1775511052363,-150.0,0.00015999,2]
[419925453,1775511052372,-150.0,0.00015999,2]
[419925454,1775511052381,-205.95195993,0.00015999,2]
[419925455,1775511052390,-350.0,0.00015999,2]
[419925456,1775511052399,-335574.00112597,0.00016,2]
[419925457,1775511053730,-6633.13592568,0.00016,2]
[419925458,1775511053742,-1902.07,0.00016,2]
[419925459,1775511053953,-2471.0,0.00015454,2]
[419925460,1775511053964,-409.68734087,0.000159,2]
[419925461,1775511053974,-2647.791397,0.00015996,2]
[419925462,1775511053983,-6195.16549677,0.00016,2]
[419925463,1775511053994,-972.59568653,0.00016,2]
[419925464,1775511054032,-3783.16635805,0.00016,2]
[419925465,1775511054075,-2467.09986115,0.0001122,2]
[419925466,1775511054085,-54807.37463511,0.00016,2]
[419925467,1775511054436,-446.78124738,0.0001044,2]
[419925468,1775511054446,-530.11282071,0.00010999,2]
[419925469,1775511054456,-360.0,0.00015419,2]
[419925470,1775511054466,-1096.0,0.00015419,2]
[419925471,1775511054475,-8206.01275537,0.000159,2]
[419925472,1775511054502,-382.94399198,0.000159,2]
[419925473,1775511054514,-300.15125318,0.000159,2]
[419925474,1775511054525,-999.0,0.000159,2]
[419925475,1775511054537,-571.82945458,0.000159,2]
[419925477,1775511274264,1100.0,9.9e-05,3]
[419925478,1775511276790,2300.0,0.0001,3]
[419925479,1775511324298,1300.0,9.9e-05,3]
[419925480,1775511326401,2600.0,0.0001,3]
[419925481,1775511347223,510.77,8.517e-05,2]
[419925482,1775511347244,3377.51,8.517e-05,2]
[419925483,1775511685853,300.0,9.8e-05,3]
[419925484,1775511689254,700.0,9.9e-05,3]
[419925485,1775511690844,1100.0,0.0001,3]
[419925486,1775511724560,-200.0,0.00010434,2]
[419925487,1775511724582,-250.0,0.00010435,2]
[419925488,1775511724605,-1200.0,0.00010437,2]
[419925489,1775511724627,-151.0,0.00010437,2]
[419925490,1775511724648,-313.0,0.00010438,2]
[419925491,1775511724670,-150.0,0.00010438,2]
[419925492,1775511724694,-177282.9655,0.00010439,2]
[419925493,1775511724714,-1084.35002387,0.00010439,3]
[419925494,1775511724736,-1025.01196795,0.00010439,3]
[419925495,1775511724758,-1037.12,0.00010439,2]
[419925496,1775511724780,-500.0,0.00010439,2]
[419925497,1775511724801,-500.0,0.00010439,2]
[419925498,1775511724823,-500.0,0.00010439,2]
[419925499,1775511724844,-500.0,0.00010439,2]
[419925500,1775511724871,-500.0,0.00010439,2]
[419925501,1775511724892,-500.0,0.00010439,2]
[419925502,1775511724914,-500.0,0.00010439,2]
[419925503,1775511724936,-312.61304999,0.00010439,2]
[419925504,1775511724963,-500.0,0.00010439,2]
[419925505,1775511724989,-500.0,0.00010439,2]
[419925506,1775511725011,-500.0,0.00010439,2]
[419925507,1775511725036,-500.0,0.00010439,2]
[419925508,1775511725062,-500.0,0.00010439,2]
[419925509,1775511725084,-500.0,0.00010439,2]
[419925510,1775511725109,-500.0,0.00010439,2]
[419925511,1775511725130,-267.08455766,0.00010439,2]
[419925512,1775511725155,-500.0,0.00010439,2]
[419925513,1775511725180,-500.0,0.00010439,2]
[419925514,1775511725206,-500.0,0.00010439,2]
[419925515,1775511725232,-500.0,0.00010439,2]
[419925516,1775511725257,-500.0,0.00010439,2]
[419925517,1775511725283,-500.0,0.00010439,2]
[419925518,1775511725308,-500.0,0.00010439,2]
[419925519,1775511725334,-500.0,0.00010439,2]
[419925520,1775511725359,-500.0,0.00010439,2]
[419925521,1775511725385,-215.25912091,0.00010439,2]
[419925522,1775511725411,-500.0,0.00010439,2]
[419925523,1775511725437,-500.0,0.00010439,2]
[419925524,1775511725464,-500.0,0.00010439,2]
[419925525,1775511725490,-500.0,0.00010439,2]
[419925526,1775511725515,-500.0,0.00010439,2]
[419925527,1775511725541,-500.0,0.00010439,2]
[419925528,1775511725566,-500.0,0.00010439,2]
[419925529,1775511725591,-500.0,0.00010439,2]
[419925530,1775511725616,-500.0,0.00010439,2]
[419925531,1775511725644,-500.0,0.00010439,2]
[419925532,1775511725670,-500.0,0.00010439,2]
[419925533,1775511725696,-500.0,0.00010439,2]
[419925534,1775511725722,-500.0,0.00010439,2]
[419925535,1775511725748,-500.0,0.00010439,2]
[419925536,1775511725774,-500.0,0.00010439,2]
[419925537,1775511725800,-500.0,0.00010439,2]
[419925538,1775511725827,-500.0,0.00010439,2]
[419925539,1775511725854,-500.0,0.00010439,2]
[419925540,1775511725880,-500.0,0.00010439,2]
[419925541,1775511725906,-500.0,0.00010439,2]
[419925542,1775511725931,-500.0,0.00010439,2]
[419925543,1775511725957,-500.0,0.00010439,2]
[419925544,1775511725978,-277.12059173,0.00010439,2]
[419925545,1775511726004,-500.0,0.00010439,2]
[419925546,1775511726029,-500.0,0.00010439,2]
[419925547,1775511726055,-642.66535312,0.00010439,2]
[419925548,1775511726080,-500.0,0.00010439,2]
[419925549,1775511726105,-500.0,0.00010439,2]
[419925550,1775511726134,-500.0,0.00010439,2]
[419925551,1775511726160,-500.0,0.00010439,2]
[419925552,1775511726185,-500.0,0.00010439,2]
[419925553,1775511726210,-500.0,0.00010439,2]
[419925554,1775511726237,-500.0,0.00010439,2]
[419925555,1775511726263,-500.0,0.00010439,2]
[419925556,1775511726290,-500.0,0.00010439,2]
[419925557,1775511726315,-500.0,0.00010439,2]
[419925558,1775511726342,-500.0,0.00010439,2]
[419925559,1775511726368,-500.0,0.00010439,2]
[419925560,1775511726394,-500.0,0.00010439,2]
[419925561,1775511726420,-500.0,0.00010439,2]
[419925562,1775511726446,-500.0,0.00010439,2]
[419925563,1775511726472,-500.0,0.00010439,2]
[419925564,1775511726498,-500.0,0.00010439,2]
[419925565,1775511726524,-500.0,0.00010439,2]
[419925566,1775511726550,-500.0,0.00010439,2]
[419925567,1775511726577,-278.85710871,0.00010439,2]
[419925568,1775511726603,-500.0,0.00010439,2]
[419925569,1775511726629,-500.0,0.00010439,2]
[419925570,1775511726655,-500.0,0.00010439,2]
[419925571,1775511726680,-500.0,0.00010439,2]
[419925572,1775511726702,-222.56808838,0.00010439,2]
[419925573,1775511726728,-500.0,0.00010439,2]
[419925574,1775511726753,-1500000.0,0.0001044,2]
[419925575,1775511726774,-18362.91,0.00010506,2]
[419925576,1775511726795,-1037.12,0.00010713,2]
[419925577,1775511726816,-2151.47237852,0.000109,2]
[419925581,1775511830161,600.0,0.0001,3]
[419925589,1775511943136,-150.0,9.986e-05,2]
[419925590,1775511943158,-150.0,9.986e-05,2]
[419925591,1775511943180,-150.0,9.986e-05,2]
[419925592,1775511943201,-150.0,9.986e-05,2]
[419925593,1775511943222,-150.0,9.986e-05,2]
[419925594,1775511943244,-150.0,9.986e-05,2]
[419925595,1775511943265,-150.4044031,9.986e-05,2]
[419925596,1775511943285,-164.2153283,9.986e-05,2]
[419925597,1775511943305,-150.56974381,9.986e-05,2]
[419925598,1775511943328,-150.0,9.986e-05,2]
[419925599,1775511943349,-130.54967654,0.0001,2]
[419925602,1775512020454,3200.0,9.7e-05,3]
[419925603,1775512022532,6400.0,9.8e-05,3]
[419925604,1775512024618,9600.0,9.9e-05,3]
[419925605,1775512027183,12800.0,0.0001,3]
[419925606,1775512039098,-166.66,9.674e-05,2]
[419925607,1775512039120,-150.0,9.986e-05,2]
[419925608,1775512039141,-150.0,9.986e-05,2]
[419925609,1775512039162,-166.66,9.993e-05,2]
[419925610,1775512039182,-65.51032346,0.0001,2]
[419925611,1775512039204,-150.0,0.0001,2]
[419925612,1775512039226,-150.0,0.00010079,2]
[419925613,1775512039248,-132.9390062,0.00010125,2]
[419925614,1775512149103,-17.0609938,0.00010125,2]
[419925615,1775512149124,-150.0,0.00010125,2]
[419925616,1775512149144,-150.0,0.00010125,2]
[419925617,1775512149164,-150.0,0.00010125,2]
[419925618,1775512149185,-50.46897877,0.00010125,2]
[419925619,1775512159179,154.95,4.701e-05,2]
[419925620,1775512159300,154.95,4.978e-05,2]
[419925621,1775512159497,154.95,5.254e-05,2]
[419925622,1775512159713,25.15,5.531e-05,2]
[419925623,1775512159741,129.8,5.531e-05,2]
[419925624,1775512159929,154.95,5.807e-05,2]
[419925625,1775512160135,154.95,6.084e-05,2]
[419925626,1775512160575,154.95,6.36e-05,2]
[419925627,1775512173884,154.95,6.637e-05,2]
[419925628,1775512174080,154.95,6.913e-05,2]
[419925629,1775512174275,154.95,7.19e-05,2]
[419925630,1775512174484,154.95,7.466e-05,2]
[419925631,1775512174685,154.95,7.743e-05,2]
[419925632,1775512174884,154.95,8.019e-05,2]
[419925633,1775512175084,154.95,8.296e-05,2]
[419925640,1775512232319,-154.95,8.572e-05,2]
[419925641,1775512232329,-544.05,8.711e-05,2]
[419925642,1775512232341,-1303.4347834,8.711e-05,2]
[419925643,1775512232350,-154.95,8.849e-05,2]
[419925644,1775512232360,-154.95,9.125e-05,2]
[419925645,1775512232370,-500.0,9.344e-05,2]
[419925646,1775512232380,-154.95,9.402e-05,2]
[419925647,1775512232389,-5000.0,9.43e-05,2]
[419925648,1775512232398,-99.53102123,0.00010125,2]
[419925649,1775512232407,-250.0,0.00010135,2]
[419925650,1775512232417,-150.0,0.00010145,2]
[419925651,1775512232426,-196.06,0.00010169,2]
[419925652,1775512232436,-150.0,0.00010171,2]
[419925653,1775512232447,-150.0,0.00010171,2]
[419925654,1775512232457,-150.0,0.00010171,2]
[419925655,1775512232467,-1200.0,0.00010236,2]
[419925656,1775512232476,-300.0,0.00010237,2]
[419925657,1775512232486,-1200.0,0.00010237,2]
[419925658,1775512232495,-300.0,0.00010237,2]
[419925659,1775512232504,-300.0,0.00010238,2]
[419925660,1775512232513,-1069.49567053,0.00010239,2]
[419925661,1775512232522,-5131.61754786,0.00010239,2]
[419925662,1775512232531,-1346.62210364,0.00010239,2]
[419925663,1775512232540,-784.25699558,0.00010248,2]
[419925664,1775512232550,-150.0,0.00010264,2]
[419925665,1775512232559,-150.0,0.00010264,2]
[419925666,1775512232568,-150.0,0.00010264,2]
[419925667,1775512232578,-467.0,0.000103,3]
[419925668,1775512232588,-2323.6532,0.00010301,2]
[419925669,1775512232597,-150.0,0.00010303,2]
[419925670,1775512232607,-166.66,0.00010313,2]
[419925671,1775512232616,-196.98404046,0.00010329,2]
[419925672,1775512232626,-150.0,0.00010337,2]
[419925673,1775512232636,-500.0,0.00010338,2]
[419925674,1775512232645,-500.0,0.00010338,2]
[419925676,1775512232655,-500.0,0.00010338,2]
[419925678,1775512232664,-500.0,0.00010338,2]
[419925679,1775512232674,-500.0,0.00010338,2]
[419925681,1775512232683,-500.0,0.00010338,2]
[419925683,1775512232693,-500.0,0.00010338,2]
[419925685,1775512232703,-500.0,0.00010338,2]
[419925687,1775512232712,-500.0,0.00010338,2]
[419925689,1775512232721,-500.0,0.00010338,2]
[419925690,1775512232731,-500.0,0.00010338,2]
[419925692,1775512232740,-500.0,0.00010338,2]
[419925694,1775512232749,-500.0,0.00010338,2]
[419925696,1775512232759,-500.0,0.00010338,2]
[419925697,1775512232768,-165.53229264,0.00010338,2]
[419925699,1775512232777,-500.0,0.00010338,2]
[419925701,1775512232787,-500.0,0.00010338,2]
[419925703,1775512232797,-500.0,0.00010338,2]
[419925705,1775512232806,-500.0,0.00010338,2]
[419925707,1775512232815,-500.0,0.00010338,2]
[419925708,1775512232825,-500.0,0.00010338,2]
[419925709,1775512232834,-500.0,0.00010338,2]
[419925710,1775512232843,-500.0,0.00010338,2]
[419925711,1775512232853,-500.0,0.00010338,2]
[419925712,1775512232862,-500.0,0.00010338,2]
[419925713,1775512232872,-500.0,0.00010338,2]
[419925714,1775512232881,-500.0,0.00010338,2]
[419925715,1775512232890,-500.0,0.00010338,2]
[419925716,1775512232899,-500.0,0.00010338,2]
[419925717,1775512232909,-637.73934469,0.00010338,2]
[419925718,1775512232918,-500.0,0.00010338,2]
[419925719,1775512232927,-500.0,0.00010338,2]
[419925720,1775512232936,-500.0,0.00010338,2]
[419925722,1775512232946,-500.0,0.00010338,2]
[419925723,1775512232955,-500.0,0.00010338,2]
[419925724,1775512232965,-500.0,0.00010338,2]
[419925725,1775512232974,-500.0,0.00010338,2]
[419925726,1775512232983,-500.0,0.00010338,2]
[419925727,1775512232993,-500.0,0.00010338,2]
[419925728,1775512233003,-500.0,0.00010338,2]
[419925729,1775512233012,-500.0,0.00010338,2]
[419925730,1775512233021,-500.0,0.00010338,2]
[419925731,1775512233030,-500.0,0.00010338,2]
[419925732,1775512233039,-500.0,0.00010338,2]
[419925733,1775512233048,-500.0,0.00010338,2]
[419925734,1775512233058,-500.0,0.00010338,2]
[419925735,1775512233068,-283.63049523,0.00010338,2]
[419925736,1775512233078,-500.0,0.00010338,2]
[419925737,1775512233088,-500.0,0.00010338,2]
[419925738,1775512233097,-525.09555488,0.00010338,2]
[419925739,1775512233107,-500.0,0.00010338,2]
[419925740,1775512233116,-500.0,0.00010338,2]
[419925741,1775512233126,-500.0,0.00010338,2]
[419925742,1775512233136,-500.0,0.00010338,2]
[419925743,1775512233145,-500.0,0.00010338,2]
[419925744,1775512233155,-437.87767064,0.00010338,2]
[419925745,1775512233164,-500.0,0.00010338,2]
[419925746,1775512233174,-7.15629873,0.00010338,2]
[419925747,1775512233187,-361.85356594,0.00010338,2]
[419925748,1775512233200,-130.99013533,0.00010338,2]
[419925749,1775512233210,-500.0,0.00010338,2]
[419925750,1775512233219,-500.0,0.00010338,2]
[419925751,1775512233229,-500.0,0.00010338,2]
[419925752,1775512233238,-500.0,0.00010338,2]
[419925753,1775512233248,-500.0,0.00010338,2]
[419925754,1775512233258,-500.0,0.00010338,2]
[419925755,1775512233267,-600.0,0.00010338,2]
[419925756,1775512233276,-362.85452887,0.00010338,2]
[419925757,1775512233286,-4021.08435311,0.00010339,2]
[419925758,1775512233297,-260.03248731,0.00010339,2]
[419925759,1775512233322,-18613.40294977,0.00010339,2]
[419925760,1775512233333,-759.47013845,0.00010339,2]
[419925761,1775512233377,-643.82857995,0.00010339,2]
[419925762,1775512233389,-437.436765,0.00010339,2]
[419925763,1775512233399,-353.5,0.00010339,2]
[419925764,1775512233410,-6608.37891665,0.00010339,2]
[419925765,1775512233429,-1483.02344022,0.00010339,2]
[419925766,1775512234454,-285521.75312756,0.00010339,2]
[419925768,1775512238402,-1346.62210364,0.00010244,2]
[419925769,1775512238412,-721171.47494198,0.00010339,2]
[419925770,1775512238422,-1500000.0,0.00010339,2]
[419925771,1775512238431,-6260.93307363,0.00010348,2]
[419925772,1775512238441,-150.0,0.00010356,2]
[419925773,1775512238450,-150.0,0.00010356,2]
[419925774,1775512238460,-150.0,0.00010356,2]
[419925775,1775512238470,-150.0,0.00010356,2]
[419925776,1775512238479,-549.675327,0.00010373,2]
[419925777,1775512238488,-500.0,0.00010373,2]
[419925778,1775512238497,-500.29772521,0.00010373,2]
[419925779,1775512238507,-500.0,0.00010373,2]
[419925780,1775512238516,-500.0,0.00010373,2]
[419925781,1775512238526,-500.0,0.00010373,2]
[419925782,1775512238535,-500.0,0.00010373,2]
[419925783,1775512238544,-500.0,0.00010373,2]
[419925784,1775512238554,-500.0,0.00010373,2]
[419925785,1775512238563,-500.0,0.00010373,2]
[419925786,1775512238572,-500.25334159,0.00010373,2]
[419925787,1775512238582,-649.74579026,0.00010373,2]
[419925788,1775512238591,-461.10773956,0.00010373,2]
[419925789,1775512238601,-500.17694496,0.00010373,2]
[419925790,1775512238610,-501.75389505,0.00010373,2]
[419925791,1775512238619,-500.16623209,0.00010373,2]
[419925792,1775512238629,-956.10678856,0.00010379,2]
[419925793,1775512238638,-150.0,0.00010402,2]
[419925794,1775512238647,-150.0,0.00010402,2]
[419925795,1775512238657,-200.0,0.00010434,2]
[419925796,1775512238666,-500.0,0.00010434,2]
[419925797,1775512238675,-500.0,0.00010434,2]
[419925798,1775512238684,-500.0,0.00010434,2]
[419925799,1775512238694,-500.0,0.00010434,2]
[419925800,1775512238704,-500.0,0.00010434,2]
[419925801,1775512238713,-500.0,0.00010434,2]
[419925802,1775512238722,-500.0,0.00010434,2]
[419925803,1775512238732,-500.0,0.00010434,2]
[419925804,1775512238741,-500.0,0.00010434,2]
[419925805,1775512238750,-500.0,0.00010434,2]
[419925806,1775512238759,-500.0,0.00010434,2]
[419925807,1775512238768,-500.0,0.00010434,2]
[419925808,1775512239276,-151.0,0.00010434,2]
[419925809,1775512239308,-151.0,0.00010434,2]
[419925810,1775512239317,-151.0,0.00010434,2]
[419925811,1775512239327,-151.0,0.00010434,2]
[419925812,1775512239336,-151.0,0.00010434,2]
[419925813,1775512239345,-151.0,0.00010434,2]
[419925814,1775512239355,-151.0,0.00010434,2]
[419925815,1775512239364,-151.0,0.00010434,2]
[419925816,1775512239373,-151.0,0.00010434,2]
[419925817,1775512239383,-151.0,0.00010434,2]
[419925818,1775512239392,-151.0,0.00010434,2]
[419925819,1775512239401,-151.0,0.00010434,2]
[419925820,1775512239411,-151.0,0.00010434,2]
[419925821,1775512239420,-151.0,0.00010434,2]
[419925822,1775512239430,-151.0,0.00010434,2]
[419925823,1775512239439,-151.0,0.00010434,2]
[419925824,1775512239449,-151.0,0.00010434,2]
[419925825,1775512239459,-151.0,0.00010434,2]
[419925826,1775512239468,-151.0,0.00010434,2]
[419925827,1775512239478,-151.0,0.00010434,2]
[419925828,1775512239487,-151.0,0.00010434,2]
[419925829,1775512239496,-151.0,0.00010434,2]
[419925831,1775512239506,-151.0,0.00010434,2]
[419925833,1775512239515,-151.0,0.00010434,2]
[419925835,1775512239524,-151.0,0.00010434,2]
[419925837,1775512239534,-151.0,0.00010434,2]
[419925839,1775512239543,-151.0,0.00010434,2]
[419925841,1775512239553,-151.0,0.00010434,2]
[419925843,1775512239562,-151.0,0.00010434,2]
[419925845,1775512239571,-500.0,0.00010434,2]
[419925847,1775512239580,-151.0,0.00010434,2]
[419925848,1775512239590,-500.0,0.00010434,2]
[419925849,1775512239599,-151.0,0.00010434,2]
[419925850,1775512239609,-500.0,0.00010434,2]
[419925851,1775512239618,-151.0,0.00010434,2]
[419925852,1775512239628,-500.0,0.00010434,2]
[419925853,1775512239638,-151.0,0.00010434,2]
[419925854,1775512239650,-500.0,0.00010434,2]
[419925855,1775512239660,-500.0,0.00010434,2]
[419925856,1775512239669,-500.0,0.00010434,2]
[419925857,1775512239679,-500.0,0.00010434,2]
[419925858,1775512239689,-500.0,0.00010434,2]
[419925859,1775512239698,-500.0,0.00010434,2]
[419925860,1775512239708,-500.0,0.00010434,2]
[419925861,1775512239717,-500.0,0.00010434,2]
[419925862,1775512239726,-1337.30371513,0.00010434,2]
[419925863,1775512239736,-2565.81005708,0.00010439,2]
[419925864,1775512239748,-4310.90487752,0.00010439,2]
[419925865,1775512239759,-4145.26433669,0.00010439,2]
[419925866,1775512239769,-4934.3961754,0.00010442,2]
[419925867,1775512239779,-147228.3782157,0.00010442,2]
[419925868,1775512239788,-150.0,0.00010449,2]
[419925869,1775512239797,-150.0,0.00010462,2]
[419925870,1775512239807,-5534.0,0.000105,5]
[419925871,1775512239817,-150.0,0.00010541,2]
[419925872,1775512239826,-150.0,0.00010541,2]
[419925873,1775512239835,-150.0,0.00010541,2]
[419925874,1775512239844,-150.0,0.00010541,2]
[419925875,1775512239855,-150.0,0.00010541,2]
[419925876,1775512239864,-150.0,0.00010541,2]
[419925877,1775512239873,-151.58,0.00010602,2]
[419925878,1775512239882,-150.0,0.0001062,2]
[419925879,1775512239892,-166.66,0.00010632,2]
[419925880,1775512239903,-150.0,0.00010634,2]
[419925881,1775512239912,-150.0,0.0001068,2]
[419925882,1775512239921,-150.0,0.0001068,2]
[419925883,1775512239931,-150.0,0.00010726,2]
[419925884,1775512239941,-150.0,0.00010726,2]
[419925885,1775512239950,-150.0,0.00010726,2]
[419925886,1775512239959,-150.0,0.00010726,2]
[419925887,1775512239969,-150.0,0.00010779,2]
[419925888,1775512239978,-477.7455152,0.00010787,2]
[419925889,1775512239988,-150.0,0.00010818,2]
[419925890,1775512239997,-150.0,0.00010818,2]
[419925891,1775512240006,-150.0,0.00010818,2]
[419925892,1775512240016,-1471.0,0.00010865,2]
[419925893,1775512240025,-1600.0,0.00010886,2]
[419925894,1775512240035,-2733.2,0.000109,2]
[419925895,1775512240044,-2733.2,0.000109,2]
[419925896,1775512240053,-1000.0,0.000109,2]
[419925897,1775512240063,-1002.93988119,0.000109,2]
[419925898,1775512240072,-288.28007871,0.000109,2]
[419925899,1775512240081,-500.0,0.000109,2]
[419925900,1775512240090,-200.0,0.000109,2]
[419925901,1775512240099,-3448.14154685,0.000109,2]
[419925902,1775512240108,-150.0,0.00010911,2]
[419925903,1775512240118,-150.0,0.00010911,2]
[419925904,1775512240127,-150.0,0.00010911,2]
[419925905,1775512240136,-500.0,0.00010921,2]
[419925906,1775512240146,-1000.0,0.00010921,2]
[419925907,1775512240155,-1000.0,0.00010921,2]
[419925908,1775512240164,-204.26825693,0.00010921,2]
[419925909,1775512240173,-1000.0,0.00010921,2]
[419925910,1775512240182,-1000.0,0.00010921,2]
[419925911,1775512240191,-1000.0,0.00010921,2]
[419925912,1775512240200,-1000.0,0.00010921,2]
[419925913,1775512240209,-334.8,0.00010921,2]
[419925914,1775512240219,-150.0,0.00010937,2]
[419925915,1775512240228,-166.66,0.00010951,2]
[419925916,1775512240237,-150.0,0.00010957,2]
[419925917,1775512240246,-150.0,0.00010957,2]
[419925918,1775512240255,-500.0,0.00010959,2]
[419925919,1775512240264,-226.04203092,0.00010959,2]
[419925920,1775512240274,-150.0,0.00010959,2]
[419925921,1775512240283,-150.0,0.00010959,2]
[419925922,1775512240292,-202.30776909,0.00010959,2]
[419925923,1775512240301,-200.0,0.00010982,2]
[419925924,1775512240310,-1386.78395259,0.00010982,2]
[419925925,1775512240320,-250.0,0.00010985,2]
[419925926,1775512240339,-1037.12,0.00010987,2]
[419925927,1775512240349,-4122.59367841,0.00010993,2]
[419925928,1775512240359,-150.0,0.00011,2]
[419925929,1775512240368,-878.0,0.00011003,2]
[419925930,1775512240377,-150.0,0.00011003,2]
[419925931,1775512240387,-480.0,0.00011025,2]
[419925932,1775512240397,-3448.1415468,0.00011048,2]
[419925933,1775512240406,-277.10434258,0.00011096,2]
[419925934,1775512240416,-251.40048736,0.00011096,2]
[419925935,1775512240426,-188.59451977,0.00011096,2]
[419925936,1775512240435,-151.81936319,0.00011096,2]
[419925937,1775512240445,-151.17477809,0.00011096,2]
[419925938,1775512240455,-283.88775064,0.00011096,2]
[419925939,1775512240464,-189.10004975,0.00011096,2]
[419925940,1775512240474,-207.13368262,0.00011096,2]
[419925941,1775512240493,-249.17338742,0.00011096,2]
[419925942,1775512240508,-27331.93099939,0.00011099,2]
[419925943,1775512240517,-27331.93099935,0.00011099,2]
[419925944,1775512240528,-26653.40585011,0.00011099,2]
[419925945,1775512240537,-26653.40585005,0.00011099,2]
[419925946,1775512240547,-250.0,0.00011137,2]
[419925947,1775512240556,-600.0,0.00011137,2]
[419925948,1775512240566,-600.0,0.00011137,2]
[419925950,1775512240575,-600.0,0.00011137,2]
[419925952,1775512240585,-600.0,0.00011137,2]
[419925953,1775512240595,-298.16059017,0.00011137,2]
[419925954,1775512240604,-195.0,0.00011137,2]
[419925955,1775512240613,-300.0,0.00011137,2]
[419925956,1775512240624,-300.0,0.00011137,2]
[419925957,1775512240634,-227.0,0.00011258,2]
[419925958,1775512240644,-172.0,0.00011258,2]
[419925959,1775512240653,-420.0,0.00011258,2]
[419925960,1775512240663,-1680.0,0.0001126,2]
[419925961,1775512240673,-1037.12,0.00011261,2]
[419925962,1775512240682,-166.66,0.00011271,2]
[419925963,1775512240692,-299.99,0.00011281,2]
[419925964,1775512240702,-995.86,0.00011281,2]
[419925965,1775512240712,-150.99,0.00011281,2]
[419925966,1775512240722,-3862.51,0.00011281,2]
[419925967,1775512240732,-999.99,0.00011281,2]
[419925968,1775512240741,-52855.07,0.00011281,2]
[419925969,1775512240751,-9999.99,0.00011281,2]
[419925970,1775512240762,-9999.99,0.00011281,2]
[419925971,1775512240771,-150.99,0.00011281,2]
[419925972,1775512240781,-9999.99,0.00011281,2]
[419925973,1775512240791,-313.09,0.00011281,2]
[419925974,1775512240800,-250.0,0.00011327,2]
[419925975,1775512240810,-446.78124736,0.0001135,2]
[419925976,1775512240820,-255.0,0.0001135,2]
[419925977,1775512240830,-1000.0,0.00011408,2]
[419925978,1775512240840,-776.0,0.00011431,2]
[419925979,1775512240850,-1500.0,0.00011468,2]
[419925980,1775512240859,-1229.6901256,0.00011468,2]
[419925981,1775512240868,-1500.0,0.00011468,2]
[419925982,1775512240878,-1500.0,0.00011468,2]